{"text_format":"2","workbook":"xlsx","n_sheets":2,"sheets":["DQE_FOOT-BSKT-VOLL","BPU_FOOT-BSKT-VOLL (2)"],"not_rendered":{"charts":0,"images":0,"macros":0,"external_links":0,"defined_names":0,"comments":0,"pivot_tables":0},"unopened":[],"bounds":{"document_bytes":16777216,"sheet_cells":100000,"run_cost":"one","rows_first":2000,"rows_last":500,"rows_between":2000,"halvings":0,"cell_chars":16384,"cell_head_chars":4096},"cells_cut":0,"cells_raw":0,"read":"whole","date_system":"1900"}

{"sheet":"DQE_FOOT-BSKT-VOLL","index":0,"n_rows":41,"n_cols":6,"rows_kept":41,"cut":false,"hidden":false,"merged":[[0,0,0,5],[1,2,1,5],[2,1,2,5]]}
["Travaux d'aménagement d'un complexe sportif à Sévaré pour le Conseil Régional de la Jeunesse de Mopti"]
[null,"Coordonnées GPS","N 14°31'44,54904\" W 4°7'7,95288\" "]
[null,"CADRE DU DEVIS QUANTITATIF ESTIMATIF  CDQE"]
["N°","DESIGNATIONS","Unité","Quantités","Prix Unitaires","MONTANT"]
["GEN","Généralités"]
["GEN1","Installation du terrain, amenée et replis matériels","FF",1,null,{"$f":"D6*E6","v":0}]
["GEN2","Décapage de la terre végétale, abattage d'arbutste et nivellement du terrain à la niveuleuse","Ens",1,null,{"$f":"D7*E7","v":0}]
["GEN3","Remblai latéritique selectionné à 95% de l'OPM, compacté par un rouleau monocylindre 19Tvibrant, , épaisseur 20 cm. Pente 0,3%","m3",{"$f":"100*104*0.2","v":2080},null,0]
["GEN4","F/P de poteaux en Tubes acier ronds de 50, Hauteur Total 2,4m; tous les 3m, ancré dans du bBéton Q 350 de 40*40*25, ","ml",{"$f":"138*2.4","v":331.2}]
["GEN5","F/P de contreventement croisé en tube acier rond de 40, (soudé au poteau en tube rond de 50), Longueur 3,66m","ml",{"$f":"3.66*2*137","v":1002.84}]
["GEN6","F/P de clôture en grillage, Hauteur 2,1m; y compris 3 fers plats comme tendeurs et 1 portail d'entreé de 3*1,5m, et 1 portillon de1,2m de largeur","ml",408,null,0]
["GEN7"," F/P de borne fontaine publique (branchement au réseau SOMAGEP)","FF",1,null,0]
["GEN8","F/P de Bordure en BA, pour calage grillage, y compris fouille et peinture à huile Rouge/blanc, Modèle P3/C3","ml",408,null,{"$f":"D13*E13","v":0}]
["GEN9","Fourniture,et pose de lampadaires solaires de 100w sur poteau métallique rond de 6m et systèmes complets d'éclairages et de fixation, y compris toutes sujétions,  ","U",24,null,0]
[null,"SOUS Total GEN",null,null,null,{"$f":"SUM(F6:F14)","v":0}]
["ESF","Espace de Football"]
["EF1","F/P de bancs en BA de 2m de long pour les spectateurs","U",24,null,{"$f":"D17*E17","v":0}]
["EF2","F/P du poteau de but (7,32*2,44 dimensions intérieures) sur fondation en semelle isolée en BA + peinture ( terrain de foot ): poteaux et transversale en acier galvaniseré plastifié 100 mm de diamètre. Crochet en nylon fixés sur la jonction du cadre pour maintenir le filet .pièces de jonction en alu moulé dans les angles de la façade.Fourreaux de scellement et couvercle non fournis, y compris peinture","FF",2,null,0]
["EF3","F/P de  Filet du poteaux de but (Terrain de foot):Filet tressé acide polylactique de 4mm- Maille carrées sans neud","Paire",2,null,0]
[null,"SOUS TOTAL TF",null,null,null,{"$f":"SUM(F17:F19)","v":0}]
["TBV","Terrains de Basket ball et Volley ball"]
["BMF","BETON MACONNERIE EN FONDATION"]
["BMF1","Béton de propréte épaisseur 5 cm dosé à 150 kg/m3","m3",{"$f":"80*25*0.05","v":100},null,{"$f":"D23*E23","v":0}]
["BMF2","Beton Q300, legèrement armé en fer normalisé HA8, maille carrée de 15x15, bordure du béton fini en siflet, y compris joints de diltation","m3",{"$f":"80*25*0.2","v":400},null,0]
[null,"Sous Total BMF",null,null,null,{"$f":"SUM(F23:F24)","v":0}]
["MEN","MENUISERIES"]
["MEN1","F/P de poteaux en fer d'acier: Structure support  de type 5 ( relevable en charpente) Construction métallique tubulaire carré 140mm-Déport reglable avec blocage définitif- y compris pouilies , cables et fixations ( terrain Basket BALL), y compris peinture","pièce",2,null,{"$f":"D27*E27","v":0}]
["MEN2","F/P de cerceaux de basket + filet: cercle renforcé compétition , conforme à la norme EN 1270 Reglementaire compétitions -Orangre RAL2004 - Avec attaches filet -Resistant en bout de cercle 300kg- Filets basket competition- Coton 4,5mm maille simple blac, y compris peinture","Ens",2,null,{"$f":"D28*E28","v":0}]
["MEN3","F/P de bancs en BA de 2m de long, y compris peinture à huile","pièce",20,null,0]
["MEN4","Reservation des ancrages en acier rond pour trous de poteaux volley-ball et handball","U",2,null,0]
["MEN5","Fourniture de 2 poteaux (y compris peinture) et 2 filets pour Volleyball","Ens",1,null,0]
[null,"Sous Total MEN",null,null,null,{"$f":"SUM(F27:F31)","v":0}]
["PET","PEINTURE"]
["PET1","Marquage de peinture acrylique sur l'aire de jeu des terrains basketball et de Volleyball","FF",1,null,{"$f":"D34*E34","v":0}]
["PET2","Peinture à huile sur bordures, Poteaux et bancs en BA","FF",1,null,{"$f":"D35*E35","v":0}]
[null,"Sous Total PET",null,null,null,{"$f":"SUM(F34:F35)","v":0}]
["TEX","Toilettes Exterieures"]
["TEX1","Réalisation de fosse septique de 30 usagers avec puisard et raccordement aux toilettes","FF",1,null,{"$f":"D38*E38","v":0}]
["TEX2","Fourniture et installation de toilettes en modules de CORIMEC préfabriqué  avec installation electrique, ampoules économiques, installation plomberie alimentation Eau potable et évacuation des EU, et ensemble des appareillages sanitaires, et raccordement au réseau d'aliementation en eau","Ens",1,null,0]
[null,"Total TEX",null,null,null,{"$f":"SUM(F38:F39)","v":0}]
[null,"TOTAL GENERAL",null,null,null,{"$f":"+F40++F36+F32+F25+F20+F15","v":0}]

{"sheet":"BPU_FOOT-BSKT-VOLL (2)","index":1,"n_rows":39,"n_cols":4,"rows_kept":39,"cut":false,"hidden":false,"merged":[[0,0,0,3],[1,2,1,3],[2,1,2,3]]}
["Travaux d'aménagement d'un complexe sportif à Sévaré pour le Conseil Régional de la Jeunesse de Mopti"]
[null,"Coordonnées GPS","N 14°31'44,54904\" W 4°7'7,95288\" "]
[null,"CADRE DU BORDERAU DES PRIX UNITAIRES, BPU"]
["N°","DESIGNATIONS","Unité","Prix Unitaires en LETTRE"]
["GEN","Généralités"]
["GEN1","Installation du terrain, amenée et replis matériels","FF"]
["GEN2","Décapage de la terre végétale, abattage d'arbutste et nivellement du terrain à la niveuleuse","Ens"]
["GEN3","Remblai latéritique selectionné à 95% de l'OPM, compacté par un rouleau monocylindre 19Tvibrant, , épaisseur 20 cm. Pente 0,3%","m3"]
["GEN4","F/P de poteaux en Tubes acier ronds de 50, Hauteur Total 2,4m; tous les 3m, ancré dans du bBéton Q 350 de 40*40*25, ","ml"]
["GEN5","F/P de contreventement croisé en tube acier rond de 40, (soudé au poteau en tube rond de 50), Longueur 3,66m","ml"]
["GEN6","F/P de clôture en grillage, Hauteur 2,1m; y compris 3 fers plats comme tendeurs et 1 portail d'entreé de 3*1,5m, et 1 portillon de1,2m de largeur","ml"]
["GEN7"," F/P de borne fontaine publique (branchement au réseau SOMAGEP)","FF"]
["GEN8","F/P de Bordure en BA, pour calage grillage, y compris fouille et peinture à huile Rouge/blanc, Modèle P3/C3","ml"]
["GEN9","Fourniture,et pose de lampadaires solaires de 100w sur poteau métallique rond de 6m et systèmes complets d'éclairages et de fixation, y compris toutes sujétions,  ","U"]
[]
["ESF","Espace de Football"]
["EF1","F/P de bancs en BA de 2m de long pour les spectateurs","U"]
["EF2","F/P du poteau de but (7,32*2,44 dimensions intérieures) sur fondation en semelle isolée en BA + peinture ( terrain de foot ): poteaux et transversale en acier galvaniseré plastifié 100 mm de diamètre. Crochet en nylon fixés sur la jonction du cadre pour maintenir le filet .pièces de jonction en alu moulé dans les angles de la façade.Fourreaux de scellement et couvercle non fournis, y compris peinture","FF"]
["EF3","F/P de  Filet du poteaux de but (Terrain de foot):Filet tressé acide polylactique de 4mm- Maille carrées sans neud","Paire"]
[]
["TBV","Terrains de Basket ball et Volley ball"]
["BMF","BETON MACONNERIE EN FONDATION"]
["BMF1","Béton de propréte épaisseur 5 cm dosé à 150 kg/m3","m3"]
["BMF2","Beton Q300, legèrement armé en fer normalisé HA8, maille carrée de 15x15, bordure du béton fini en siflet, y compris joints de diltation","m3"]
[]
["MEN","MENUISERIES"]
["MEN1","F/P de poteaux en fer d'acier: Structure support  de type 5 ( relevable en charpente) Construction métallique tubulaire carré 140mm-Déport reglable avec blocage définitif- y compris pouilies , cables et fixations ( terrain Basket BALL), y compris peinture","pièce"]
["MEN2","F/P de cerceaux de basket + filet: cercle renforcé compétition , conforme à la norme EN 1270 Reglementaire compétitions -Orangre RAL2004 - Avec attaches filet -Resistant en bout de cercle 300kg- Filets basket competition- Coton 4,5mm maille simple blac, y compris peinture","Ens"]
["MEN3","F/P de bancs en BA de 2m de long, y compris peinture à huile","pièce"]
["MEN4","Reservation des ancrages en acier rond pour trous de poteaux volley-ball et handball","U"]
["MEN5","Fourniture de 2 poteaux (y compris peinture) et 2 filets pour Volleyball","Ens"]
[]
["PET","PEINTURE"]
["PET1","Marquage de peinture acrylique sur l'aire de jeu des terrains basketball et de Volleyball","FF"]
["PET2","Peinture à huile sur bordures, Poteaux et bancs en BA","FF"]
[]
["TEX","Toilettes Exterieures"]
["TEX1","Réalisation de fosse septique de 30 usagers avec puisard et raccordement aux toilettes","FF"]
["TEX2","Fourniture et installation de toilettes en modules de CORIMEC préfabriqué  avec installation electrique, ampoules économiques, installation plomberie alimentation Eau potable et évacuation des EU, et ensemble des appareillages sanitaires, et raccordement au réseau d'aliementation en eau","Ens"]